{"text_format":"3","workbook":"xlsx","n_sheets":1,"sheets":["NÁKLADY NA PRESTAVBU"],"not_rendered":{"images":2,"defined_names":4},"read":"whole","date_system":"1900"}

{"sheet":"NÁKLADY NA PRESTAVBU","index":0,"n_rows":28,"n_cols":8,"rows_kept":28,"merged":[[25,1,25,5],[26,1,26,5],[27,1,27,5]]}
[null,"HÁROK S NÁKLADMI NA PRESTAVBU KUCHYNE"]
[]
[null,"Kategória","Položky","Množstvo","Odhadované náklady","Skutočné náklady","Odhadované náklady spolu","Skutočné náklady spolu"]
[null,"Linky","Základná linka: štandardná (veľkosť uvedená v stopách)",25,{"v":5,"d":"5.00 EUR"},null,{"$f":"Údaje[[#This Row],[Množstvo]]*Údaje[[#This Row],[Odhadované náklady]]","v":{"v":125,"d":"125 EUR"}},{"$f":"Údaje[[#This Row],[Množstvo]]*Údaje[[#This Row],[Skutočné náklady]]","v":{"v":0,"d":"0 EUR"}}]
[null,"Linky","Vrchné skrinky: štandardné (veľkosť uvedená v stopách)",25,{"v":3.5,"d":"3.50 EUR"},null,{"$f":"Údaje[[#This Row],[Množstvo]]*Údaje[[#This Row],[Odhadované náklady]]","v":{"v":87.5,"d":"88 EUR"}},{"$f":"Údaje[[#This Row],[Množstvo]]*Údaje[[#This Row],[Skutočné náklady]]","v":{"v":0,"d":"0 EUR"}}]
[null,"Spotrebiče na čistenie","Umývačka riadu: štandardná",1,{"v":250,"d":"250.00 EUR"},null,{"$f":"Údaje[[#This Row],[Množstvo]]*Údaje[[#This Row],[Odhadované náklady]]","v":{"v":250,"d":"250 EUR"}},{"$f":"Údaje[[#This Row],[Množstvo]]*Údaje[[#This Row],[Skutočné náklady]]","v":{"v":0,"d":"0 EUR"}}]
[null,"Spotrebiče na čistenie","Drvič odpadkov: štandardný",1,{"v":175,"d":"175.00 EUR"},null,{"$f":"Údaje[[#This Row],[Množstvo]]*Údaje[[#This Row],[Odhadované náklady]]","v":{"v":175,"d":"175 EUR"}},{"$f":"Údaje[[#This Row],[Množstvo]]*Údaje[[#This Row],[Skutočné náklady]]","v":{"v":0,"d":"0 EUR"}}]
[null,"Spotrebiče na varenie","Sporák: štandardný, vstavaný",1,{"v":375,"d":"375.00 EUR"},null,{"$f":"Údaje[[#This Row],[Množstvo]]*Údaje[[#This Row],[Odhadované náklady]]","v":{"v":375,"d":"375 EUR"}},{"$f":"Údaje[[#This Row],[Množstvo]]*Údaje[[#This Row],[Skutočné náklady]]","v":{"v":0,"d":"0 EUR"}}]
[null,"Spotrebiče na varenie","Mikrovlnná rúra: štandardná",1,{"v":300,"d":"300.00 EUR"},null,{"$f":"Údaje[[#This Row],[Množstvo]]*Údaje[[#This Row],[Odhadované náklady]]","v":{"v":300,"d":"300 EUR"}},{"$f":"Údaje[[#This Row],[Množstvo]]*Údaje[[#This Row],[Skutočné náklady]]","v":{"v":0,"d":"0 EUR"}}]
[null,"Pracovné dosky","Jednoliaty materiál (veľkosť v stopách)",23,{"v":10,"d":"10.00 EUR"},null,{"$f":"Údaje[[#This Row],[Množstvo]]*Údaje[[#This Row],[Odhadované náklady]]","v":{"v":230,"d":"230 EUR"}},{"$f":"Údaje[[#This Row],[Množstvo]]*Údaje[[#This Row],[Skutočné náklady]]","v":{"v":0,"d":"0 EUR"}}]
[null,"Dvere","Interiérové: dyhované s pevným jadrom",1,{"v":65,"d":"65.00 EUR"},null,{"$f":"Údaje[[#This Row],[Množstvo]]*Údaje[[#This Row],[Odhadované náklady]]","v":{"v":65,"d":"65 EUR"}},{"$f":"Údaje[[#This Row],[Množstvo]]*Údaje[[#This Row],[Skutočné náklady]]","v":{"v":0,"d":"0 EUR"}}]
[null,"Iné doplnky","Iné doplnky: okamžitý ohrev vody, štandard",1,{"v":120,"d":"120.00 EUR"},null,{"$f":"Údaje[[#This Row],[Množstvo]]*Údaje[[#This Row],[Odhadované náklady]]","v":{"v":120,"d":"120 EUR"}},{"$f":"Údaje[[#This Row],[Množstvo]]*Údaje[[#This Row],[Skutočné náklady]]","v":{"v":0,"d":"0 EUR"}}]
[null,"Iné doplnky","Iné doplnky: zásobník na mydlo",1,{"v":40,"d":"40.00 EUR"},null,{"$f":"Údaje[[#This Row],[Množstvo]]*Údaje[[#This Row],[Odhadované náklady]]","v":{"v":40,"d":"40 EUR"}},{"$f":"Údaje[[#This Row],[Množstvo]]*Údaje[[#This Row],[Skutočné náklady]]","v":{"v":0,"d":"0 EUR"}}]
[null,"Batérie","Batéria: s pákou, štandardná",1,{"v":130,"d":"130.00 EUR"},null,{"$f":"Údaje[[#This Row],[Množstvo]]*Údaje[[#This Row],[Odhadované náklady]]","v":{"v":130,"d":"130 EUR"}},{"$f":"Údaje[[#This Row],[Množstvo]]*Údaje[[#This Row],[Skutočné náklady]]","v":{"v":0,"d":"0 EUR"}}]
[null,"Podlaha","Laminátová (veľkosť v stopách)",165,{"v":3.5,"d":"3.50 EUR"},null,{"$f":"Údaje[[#This Row],[Množstvo]]*Údaje[[#This Row],[Odhadované náklady]]","v":{"v":577.5,"d":"578 EUR"}},{"$f":"Údaje[[#This Row],[Množstvo]]*Údaje[[#This Row],[Skutočné náklady]]","v":{"v":0,"d":"0 EUR"}}]
[null,"Spotrebiče na pranie","Práčka: štandardná",1,{"v":500,"d":"500.00 EUR"},null,{"$f":"Údaje[[#This Row],[Množstvo]]*Údaje[[#This Row],[Odhadované náklady]]","v":{"v":500,"d":"500 EUR"}},{"$f":"Údaje[[#This Row],[Množstvo]]*Údaje[[#This Row],[Skutočné náklady]]","v":{"v":0,"d":"0 EUR"}}]
[null,"Spotrebiče na pranie","Sušička: štandardná",1,{"v":375,"d":"375.00 EUR"},null,{"$f":"Údaje[[#This Row],[Množstvo]]*Údaje[[#This Row],[Odhadované náklady]]","v":{"v":375,"d":"375 EUR"}},{"$f":"Údaje[[#This Row],[Množstvo]]*Údaje[[#This Row],[Skutočné náklady]]","v":{"v":0,"d":"0 EUR"}}]
[null,"Osvetlenie","Osvetlenie: Vstavané, bodové",4,{"v":35,"d":"35.00 EUR"},null,{"$f":"Údaje[[#This Row],[Množstvo]]*Údaje[[#This Row],[Odhadované náklady]]","v":{"v":140,"d":"140 EUR"}},{"$f":"Údaje[[#This Row],[Množstvo]]*Údaje[[#This Row],[Skutočné náklady]]","v":{"v":0,"d":"0 EUR"}}]
[null,"Chladničky","Chladnička: nevstavaná, s luxusným vzhľadom",1,{"v":1200,"d":"1,200.00 EUR"},null,{"$f":"Údaje[[#This Row],[Množstvo]]*Údaje[[#This Row],[Odhadované náklady]]","v":{"v":1200,"d":"1,200 EUR"}},{"$f":"Údaje[[#This Row],[Množstvo]]*Údaje[[#This Row],[Skutočné náklady]]","v":{"v":0,"d":"0 EUR"}}]
[null,"Drezy","Dve umývadlá, z nerezovej ocele, s luxusným vzhľadom",1,{"v":125,"d":"125.00 EUR"},null,{"$f":"Údaje[[#This Row],[Množstvo]]*Údaje[[#This Row],[Odhadované náklady]]","v":{"v":125,"d":"125 EUR"}},{"$f":"Údaje[[#This Row],[Množstvo]]*Údaje[[#This Row],[Skutočné náklady]]","v":{"v":0,"d":"0 EUR"}}]
[null,"Ventilácia","Digestor: s odvádzaním von, štandardný",1,{"v":180,"d":"180.00 EUR"},null,{"$f":"Údaje[[#This Row],[Množstvo]]*Údaje[[#This Row],[Odhadované náklady]]","v":{"v":180,"d":"180 EUR"}},{"$f":"Údaje[[#This Row],[Množstvo]]*Údaje[[#This Row],[Skutočné náklady]]","v":{"v":0,"d":"0 EUR"}}]
[null,"Steny","Obkladačky (veľkosť v stopách)",70,{"v":2,"d":"2.00 EUR"},null,{"$f":"Údaje[[#This Row],[Množstvo]]*Údaje[[#This Row],[Odhadované náklady]]","v":{"v":140,"d":"140 EUR"}},{"$f":"Údaje[[#This Row],[Množstvo]]*Údaje[[#This Row],[Skutočné náklady]]","v":{"v":0,"d":"0 EUR"}}]
[null,"Okná","Posuvné",2,{"v":120,"d":"120.00 EUR"},null,{"$f":"Údaje[[#This Row],[Množstvo]]*Údaje[[#This Row],[Odhadované náklady]]","v":{"v":240,"d":"240 EUR"}},{"$f":"Údaje[[#This Row],[Množstvo]]*Údaje[[#This Row],[Skutočné náklady]]","v":{"v":0,"d":"0 EUR"}}]
[null,"Iné",{"$nulls":4},{"$f":"Údaje[[#This Row],[Množstvo]]*Údaje[[#This Row],[Odhadované náklady]]","v":{"v":0,"d":"0 EUR"}},{"$f":"Údaje[[#This Row],[Množstvo]]*Údaje[[#This Row],[Skutočné náklady]]","v":{"v":0,"d":"0 EUR"}}]
[null,"Súčet",null,null,{"$f":"SUBTOTAL(109,Údaje[Odhadované náklady])","v":{"v":4014,"d":"4,014.00 EUR"}},{"$f":"SUBTOTAL(109,Údaje[Skutočné náklady])","v":{"v":0,"d":"0.00 EUR"}},{"$f":"SUBTOTAL(109,Údaje[Odhadované náklady spolu])","v":{"v":5375,"d":"5,375.00 EUR"}},{"$f":"SUBTOTAL(109,Údaje[Skutočné náklady spolu])","v":{"v":0,"d":"0.00 EUR"}}]
[null,"Medzisúčet",{"$nulls":4},{"$f":"SUBTOTAL(109,Údaje[Odhadované náklady spolu])","v":{"v":5375,"d":"5,375.00 EUR"}},{"$f":"SUBTOTAL(109,Údaje[Skutočné náklady spolu])","v":{"v":0,"d":"0.00 EUR"}}]
[null,"Neočakávané výdavky – plus 30 %",{"$nulls":4},{"$f":"G26*0.3","v":{"v":1612.5,"d":"1,612.50 EUR"}},{"$f":"H26*0.3","v":{"v":0,"d":"0.00 EUR"}}]
[null,"Súčet",{"$nulls":4},{"$f":"SUM(G26:G27)","v":{"v":6987.5,"d":"6,987.50 EUR"}},{"$f":"SUM(H26:H27)","v":{"v":0,"d":"0.00 EUR"}}]